fUSD/lending_fUSD_20260118
["ID","MTS","AMOUNT","RATE_DAILY","PERIOD"]
[402582133,1768713040986,-150.0,0.00014359,2]
[402582134,1768713041000,-490.3117775,0.00014359,2]
[402582135,1768713041009,-150.0,0.00014359,2]
[402582136,1768713041019,-158.70596761,0.00014359,2]
[402582137,1768713041028,-203.50567429,0.00014359,2]
[402582138,1768713041037,-500.0,0.00014359,2]
[402582139,1768713041047,-557.79295529,0.00014359,2]
[402582140,1768713041056,-150.0,0.00014359,2]
[402582141,1768713041065,-150.0,0.00014359,2]
[402582142,1768713041074,-1139.0,0.00014367,2]
[402582143,1768713041083,-500.0,0.00014414,2]
[402582144,1768713041092,-500.0,0.00014414,2]
[402582145,1768713041102,-207.24611606,0.00014414,2]
[402582146,1768713041111,-150.0,0.00014414,2]
[402582147,1768713041120,-500.0,0.00014414,2]
[402582148,1768713041129,-202.14188137,0.00014414,2]
[402582149,1768713041139,-204.07775139,0.00014414,2]
[402582150,1768713041148,-1191.47,0.00014422,2]
[402582151,1768713041157,-1139.0,0.00014422,2]
[402582152,1768713041166,-500.0,0.00014468,2]
[402582153,1768713041176,-500.0,0.00014468,2]
[402582154,1768713041185,-150.0,0.00014468,2]
[402582155,1768713041194,-500.0,0.00014468,2]
[402582156,1768713041202,-1139.0,0.00014477,2]
[402582157,1768713041210,-500.0,0.00014523,2]
[402582158,1768713041219,-500.0,0.00014523,2]
[402582159,1768713041228,-160.8165198,0.00014523,2]
[402582160,1768713041237,-500.0,0.00014523,2]
[402582161,1768713041246,-1139.0,0.00014532,2]
[402582162,1768713041256,-516.98172678,0.00014568,2]
[402582163,1768713041266,-518.73399907,0.00014577,2]
[402582164,1768713041276,-166373.19,0.00014577,2]
[402582165,1768713041286,-500.0,0.00014578,2]
[402582166,1768713041295,-576.37557313,0.00014578,2]
[402582167,1768713041304,-500.0,0.00014578,2]
[402582168,1768713041314,-1139.0,0.00014586,2]
[402582169,1768713041323,-178.57,0.00014619,2]
[402582170,1768713041332,-257.51653588,0.00014633,2]
[402582171,1768713041341,-500.0,0.00014633,2]
[402582172,1768713041350,-1139.0,0.00014641,2]
[402582173,1768713041359,-9667.20293569,0.00014668,2]
[402582174,1768713041368,-5912.15067055,0.00014668,2]
[402582175,1768713041378,-387.57429082,0.00014688,2]
[402582176,1768713041388,-1139.0,0.00014696,2]
[402582177,1768713041397,-1139.0,0.00014751,2]
[402582178,1768713041406,-370.48068183,0.00014778,2]
[402582179,1768713041416,-565.70718826,0.00014778,2]
[402582180,1768713041425,-1139.0,0.00014806,2]
[402582181,1768713041434,-255.0,0.00014857,2]
[402582182,1768713041443,-3280.39928085,0.0001486,2]
[402582183,1768713041453,-5787.01316956,0.0001486,2]
[402582184,1768713041463,-8657.02560314,0.0001486,2]
[402582185,1768713041472,-11713.2543,0.0001486,2]
[402582186,1768713041482,-1139.0,0.0001486,2]
[402582187,1768713041492,-216.74260354,0.000149,2]
[402582188,1768713041501,-700.0,0.000149,5]
[402582189,1768713041511,-1139.0,0.00014915,2]
[402582190,1768713041521,-612.82956367,0.00014932,2]
[402582191,1768713041530,-420.0,0.00014953,2]
[402582192,1768713041539,-1139.0,0.0001497,2]
[402582193,1768713041548,-1680.0,0.00015008,2]
[402582194,1768713041557,-195.0,0.00015009,2]
[402582195,1768713041567,-600.0,0.00015009,2]
[402582196,1768713041576,-1139.0,0.00015025,2]
[402582197,1768713041586,-236.11,0.00015053,2]
[402582198,1768713041595,-1139.0,0.0001508,2]
[402582199,1768713041605,-1191.47,0.00015108,2]
[402582200,1768713041617,-151.0,0.0001512,2]
[402582201,1768713041627,-151.0,0.0001512,2]
[402582202,1768713041636,-151.0,0.00015127,2]
[402582203,1768713041646,-151.0,0.00015127,2]
[402582204,1768713041657,-163.34716985,0.0001513,2]
[402582205,1768713041666,-9667.20293569,0.0001513,2]
[402582206,1768713041675,-5912.15067055,0.0001513,2]
[402582207,1768713041687,-1139.0,0.00015134,2]
[402582208,1768713041697,-151.0,0.00015168,2]
[402582209,1768713041707,-151.0,0.00015168,2]
[402582210,1768713041716,-1139.0,0.00015189,2]
[402582211,1768713041726,-150.0,0.00015318,2]
[402582212,1768713041738,-150.0,0.00015318,2]
[402582213,1768713041748,-500.0,0.00015318,2]
[402582214,1768713041758,-160.85120225,0.00015318,2]
[402582215,1768713041768,-250.17696529,0.00015318,2]
[402582216,1768713041778,-153.00604463,0.00015373,2]
[402582217,1768713041787,-150.0,0.00015373,2]
[402582218,1768713041796,-500.0,0.00015373,2]
[402582219,1768713041805,-150.0,0.00015428,2]
[402582220,1768713041815,-501.86548223,0.00015428,2]
[402582221,1768713041824,-150.0,0.00015482,2]
[402582222,1768713041834,-612.82956367,0.00015526,2]
[402582223,1768713041843,-150.0,0.00015537,2]
[402582224,1768713041853,-9667.20293569,0.00015592,2]
[402582225,1768713041863,-5912.15067055,0.00015592,2]
[402582226,1768713041873,-250.0,0.00015592,2]
[402582227,1768713041882,-200.0,0.00015721,2]
[402582228,1768713041892,-1191.47,0.00015795,2]
[402582229,1768713041901,-236.11,0.00015845,2]
[402582230,1768713041910,-1778.32,0.00015982,2]
[402582231,1768713041920,-9667.20293569,0.00016053,2]
[402582232,1768713041929,-5912.15067055,0.00016053,2]
[402582233,1768713041941,-433.0,0.00016067,2]
[402582234,1768713041951,-612.82956367,0.00016119,2]
[402582235,1768713041961,-483.79,0.00016164,2]
[402582236,1768713041971,-150.0,0.000162,2]
[402582237,1768713041980,-150.0,0.000162,2]
[402582238,1768713041990,-150.0,0.000162,2]
[402582239,1768713042000,-150.0,0.000162,2]
[402582240,1768713042011,-150.0,0.000162,2]
[402582241,1768713042020,-150.0,0.000162,2]
[402582242,1768713042030,-150.0,0.000162,2]
[402582243,1768713042039,-150.0,0.000162,2]
[402582244,1768713042048,-150.0,0.000162,2]
[402582245,1768713042057,-150.0,0.000162,2]
[402582246,1768713042067,-150.62813761,0.000162,2]
[402582247,1768713042076,-150.48546304,0.000162,2]
[402582248,1768713042086,-150.0,0.000162,2]
[402582249,1768713042095,-150.0,0.000162,2]
[402582250,1768713042105,-150.0,0.000162,2]
[402582251,1768713042114,-150.0,0.00016278,2]
[402582252,1768713042123,-150.0,0.00016338,2]
[402582253,1768713042134,-500.0,0.00016356,2]
[402582254,1768713042143,-500.0,0.00016356,2]
[402582255,1768713042153,-600.0,0.00016356,2]
[402582256,1768713042163,-150.0,0.00016356,2]
[402582257,1768713042172,-150.0,0.00016356,2]
[402582258,1768713042181,-150.0,0.00016357,2]
[402582259,1768713042191,-587.0,0.00016388,2]
[402582260,1768713042200,-150.0,0.00016435,2]
[402582261,1768713042210,-501.32651158,0.00016438,2]
[402582262,1768713042220,-501.36673818,0.00016438,2]
[402582263,1768713042230,-501.8149228,0.00016438,2]
[402582264,1768713042239,-502.40375353,0.00016438,2]
[402582265,1768713042249,-502.06349229,0.00016438,2]
[402582266,1768713042259,-500.35695421,0.00016438,2]
[402582267,1768713042268,-499.99558861,0.00016438,2]
[402582268,1768713042277,-151.44917988,0.00016438,2]
[402582269,1768713042286,-500.0,0.00016438,2]
[402582270,1768713042296,-500.0,0.00016438,2]
[402582271,1768713042305,-500.0,0.00016438,2]
[402582272,1768713042314,-500.0,0.00016438,2]
[402582273,1768713042323,-500.0,0.00016438,2]
[402582274,1768713042332,-500.0,0.00016438,2]
[402582275,1768713042342,-500.0,0.00016438,2]
[402582276,1768713042351,-500.0,0.00016438,2]
[402582277,1768713042360,-500.0,0.00016438,2]
[402582278,1768713042370,-253.68769872,0.00016438,2]
[402582279,1768713042379,-500.0,0.00016438,2]
[402582280,1768713042388,-500.0,0.00016438,2]
[402582281,1768713042397,-500.0,0.00016438,2]
[402582282,1768713042407,-500.0,0.00016438,2]
[402582283,1768713042416,-500.0,0.00016438,2]
[402582284,1768713042425,-500.0,0.00016438,2]
[402582285,1768713042435,-319.57706414,0.00016438,2]
[402582286,1768713042445,-535.62,0.00016438,2]
[402582287,1768713042455,-500.0,0.00016438,2]
[402582288,1768713042465,-500.0,0.00016438,2]
[402582289,1768713042476,-500.0,0.00016438,2]
[402582290,1768713042485,-510.2071425,0.00016438,2]
[402582291,1768713042495,-500.0,0.00016438,2]
[402582292,1768713042504,-500.0,0.00016438,2]
[402582293,1768713042513,-500.0,0.00016438,2]
[402582294,1768713042523,-500.0,0.00016438,2]
[402582295,1768713042532,-579.03,0.00016438,2]
[402582296,1768713042541,-500.0,0.00016438,2]
[402582297,1768713042549,-500.0,0.00016438,2]
[402582298,1768713042557,-500.0,0.00016438,2]
[402582299,1768713042567,-500.0,0.00016438,2]
[402582300,1768713042576,-500.0,0.00016438,2]
[402582301,1768713042586,-500.0,0.00016438,2]
[402582302,1768713042595,-500.0,0.00016438,2]
[402582303,1768713042605,-500.0,0.00016438,2]
[402582304,1768713042617,-500.0,0.00016438,2]
[402582305,1768713042627,-500.0,0.00016438,2]
[402582307,1768713042636,-500.0,0.00016438,2]
[402582309,1768713042646,-818.42,0.00016438,2]
[402582311,1768713042658,-563.57,0.00016438,2]
[402582312,1768713042667,-500.0,0.00016438,2]
[402582313,1768713042677,-500.0,0.00016438,2]
[402582314,1768713042688,-500.0,0.00016438,2]
[402582315,1768713042700,-500.0,0.00016438,2]
[402582316,1768713042710,-500.0,0.00016438,2]
[402582317,1768713042719,-500.0,0.00016438,2]
[402582318,1768713042729,-500.0,0.00016438,2]
[402582319,1768713042738,-500.0,0.00016438,2]
[402582320,1768713042747,-500.0,0.00016438,2]
[402582321,1768713042756,-500.0,0.00016438,2]
[402582322,1768713042767,-500.0,0.00016438,2]
[402582323,1768713042776,-500.0,0.00016438,2]
[402582324,1768713042786,-500.0,0.00016438,2]
[402582325,1768713042795,-500.0,0.00016438,2]
[402582326,1768713042805,-500.0,0.00016438,2]
[402582327,1768713042814,-500.0,0.00016438,2]
[402582328,1768713042823,-500.0,0.00016438,2]
[402582329,1768713042833,-500.0,0.00016438,2]
[402582330,1768713042843,-500.0,0.00016438,2]
[402582331,1768713042853,-500.0,0.00016438,2]
[402582332,1768713042863,-157.27990513,0.00016438,2]
[402582333,1768713042873,-500.0,0.00016438,2]
[402582334,1768713042883,-500.0,0.00016438,2]
[402582335,1768713042892,-500.0,0.00016438,2]
[402582336,1768713042902,-500.0,0.00016438,2]
[402582337,1768713042912,-500.0,0.00016438,2]
[402582338,1768713042921,-500.0,0.00016438,2]
[402582339,1768713042931,-500.0,0.00016438,2]
[402582340,1768713042940,-646.17,0.00016438,2]
[402582341,1768713042950,-500.0,0.00016438,2]
[402582342,1768713042959,-500.0,0.00016438,2]
[402582343,1768713042969,-500.0,0.00016438,2]
[402582344,1768713042978,-500.0,0.00016438,2]
[402582345,1768713042989,-500.0,0.00016438,2]
[402582346,1768713042999,-500.0,0.00016438,2]
[402582347,1768713043009,-500.0,0.00016438,2]
[402582348,1768713043019,-500.0,0.00016438,2]
[402582349,1768713043029,-500.0,0.00016438,2]
[402582350,1768713043039,-500.0,0.00016438,2]
[402582351,1768713043048,-500.0,0.00016438,2]
[402582352,1768713043057,-514.0,0.00016438,2]
[402582353,1768713043068,-500.0,0.00016438,2]
[402582354,1768713043077,-500.0,0.00016438,2]
[402582355,1768713043087,-500.0,0.00016438,2]
[402582356,1768713043097,-500.0,0.00016438,2]
[402582357,1768713043107,-500.0,0.00016438,2]
[402582358,1768713043117,-500.0,0.00016438,2]
[402582359,1768713043127,-559.76717123,0.00016438,2]
[402582360,1768713043136,-500.0,0.00016438,2]
[402582361,1768713043145,-301.43645124,0.00016438,2]
[402582362,1768713043164,-500.0,0.00016438,2]
[402582363,1768713043175,-500.0,0.00016438,2]
[402582364,1768713043184,-500.0,0.00016438,2]
[402582365,1768713043194,-500.0,0.00016438,2]
[402582366,1768713043204,-482.84390062,0.00016438,2]
[402582367,1768713043213,-500.0,0.00016438,2]
[402582368,1768713043223,-500.0,0.00016438,2]
[402582369,1768713043233,-500.0,0.00016438,2]
[402582370,1768713043243,-500.0,0.00016438,2]
[402582371,1768713043253,-500.0,0.00016438,2]
[402582372,1768713043263,-500.0,0.00016438,2]
[402582373,1768713043273,-500.0,0.00016438,2]
[402582374,1768713043283,-500.0,0.00016438,2]
[402582375,1768713043293,-500.0,0.00016438,2]
[402582376,1768713043302,-500.0,0.00016438,2]
[402582377,1768713043312,-500.0,0.00016438,2]
[402582378,1768713043323,-500.0,0.00016438,2]
[402582379,1768713043333,-500.0,0.00016438,2]
[402582380,1768713043342,-500.0,0.00016438,2]
[402582381,1768713043352,-500.0,0.00016438,2]
[402582382,1768713043361,-500.0,0.00016438,2]
[402582383,1768713043371,-500.0,0.00016438,2]
[402582384,1768713043381,-500.0,0.00016438,2]
[402582385,1768713043390,-500.0,0.00016438,2]
[402582386,1768713043400,-500.0,0.00016438,2]
[402582387,1768713043409,-500.0,0.00016438,2]
[402582388,1768713043419,-500.0,0.00016438,2]
[402582389,1768713043431,-500.0,0.00016438,2]
[402582390,1768713043443,-500.0,0.00016438,2]
[402582391,1768713043453,-500.0,0.00016438,2]
[402582392,1768713043464,-500.0,0.00016438,2]
[402582393,1768713043473,-500.0,0.00016438,2]
[402582394,1768713043483,-500.0,0.00016438,2]
[402582395,1768713043492,-500.0,0.00016438,2]
[402582396,1768713043502,-500.0,0.00016438,2]
[402582397,1768713043512,-500.0,0.00016438,2]
[402582398,1768713043522,-500.0,0.00016438,2]
[402582399,1768713043531,-500.0,0.00016438,2]
[402582400,1768713043541,-500.0,0.00016438,2]
[402582401,1768713043550,-600.04,0.00016438,2]
[402582402,1768713043559,-500.0,0.00016438,2]
[402582403,1768713043570,-500.0,0.00016438,2]
[402582404,1768713043580,-500.0,0.00016438,2]
[402582405,1768713043589,-500.0,0.00016438,2]
[402582406,1768713043599,-500.0,0.00016438,2]
[402582407,1768713043947,-500.0,0.00016438,2]
[402582408,1768713043972,-500.0,0.00016438,2]
[402582409,1768713043982,-500.0,0.00016438,2]
[402582410,1768713043991,-500.0,0.00016438,2]
[402582411,1768713044001,-500.0,0.00016438,2]
[402582412,1768713044010,-500.0,0.00016438,2]
[402582413,1768713044020,-500.0,0.00016438,2]
[402582414,1768713044029,-500.0,0.00016438,2]
[402582415,1768713044039,-500.0,0.00016438,2]
[402582416,1768713044048,-500.0,0.00016438,2]
[402582417,1768713044057,-500.0,0.00016438,2]
[402582418,1768713044067,-500.0,0.00016438,2]
[402582419,1768713044076,-500.0,0.00016438,2]
[402582420,1768713044086,-215.39663362,0.00016438,2]
[402582421,1768713044095,-500.0,0.00016438,2]
[402582422,1768713044105,-500.0,0.00016438,2]
[402582423,1768713044114,-500.0,0.00016438,2]
[402582424,1768713044123,-500.0,0.00016438,2]
[402582425,1768713044133,-500.0,0.00016438,2]
[402582426,1768713044143,-500.0,0.00016438,2]
[402582427,1768713044153,-500.0,0.00016438,2]
[402582428,1768713044162,-500.0,0.00016438,2]
[402582429,1768713044172,-500.0,0.00016438,2]
[402582430,1768713044181,-500.0,0.00016438,2]
[402582431,1768713044191,-500.0,0.00016438,2]
[402582432,1768713044200,-536.88953719,0.00016438,2]
[402582433,1768713044209,-500.0,0.00016438,2]
[402582434,1768713044218,-545.07666712,0.00016438,2]
[402582435,1768713044227,-500.0,0.00016438,2]
[402582436,1768713044236,-500.0,0.00016438,2]
[402582437,1768713044245,-500.0,0.00016438,2]
[402582438,1768713044255,-500.0,0.00016438,2]
[402582439,1768713044264,-500.0,0.00016438,2]
[402582440,1768713044273,-500.0,0.00016438,2]
[402582441,1768713044282,-500.0,0.00016438,2]
[402582442,1768713044291,-500.0,0.00016438,2]
[402582443,1768713044301,-500.0,0.00016438,2]
[402582444,1768713044310,-512.53,0.00016438,2]
[402582445,1768713044319,-500.0,0.00016438,2]
[402582446,1768713044328,-500.0,0.00016438,2]
[402582447,1768713044338,-626.42247154,0.00016438,2]
[402582448,1768713044347,-500.0,0.00016438,2]
[402582449,1768713044356,-500.0,0.00016438,2]
[402582450,1768713044366,-500.0,0.00016438,2]
[402582451,1768713044375,-500.0,0.00016438,2]
[402582452,1768713044384,-932.91,0.00016438,2]
[402582453,1768713044393,-500.0,0.00016438,2]
[402582454,1768713044403,-500.0,0.00016438,2]
[402582455,1768713044412,-500.0,0.00016438,2]
[402582456,1768713044421,-500.0,0.00016438,2]
[402582457,1768713044430,-500.0,0.00016438,2]
[402582458,1768713044439,-500.0,0.00016438,2]
[402582459,1768713044449,-500.0,0.00016438,2]
[402582460,1768713044458,-500.0,0.00016438,2]
[402582461,1768713044467,-500.0,0.00016438,2]
[402582462,1768713044476,-500.0,0.00016438,2]
[402582463,1768713044486,-500.0,0.00016438,2]
[402582464,1768713044494,-500.0,0.00016438,2]
[402582465,1768713044503,-509.65189939,0.00016438,2]
[402582466,1768713044512,-500.0,0.00016438,2]
[402582467,1768713044522,-500.0,0.00016438,2]
[402582468,1768713044531,-500.0,0.00016438,2]
[402582469,1768713044540,-500.0,0.00016438,2]
[402582470,1768713044550,-500.0,0.00016438,2]
[402582472,1768713044559,-500.0,0.00016438,2]
[402582473,1768713044568,-500.0,0.00016438,2]
[402582474,1768713044578,-500.0,0.00016438,2]
[402582475,1768713044587,-500.0,0.00016438,2]
[402582476,1768713044596,-500.0,0.00016438,2]
[402582477,1768713044606,-382.93866645,0.00016438,2]
[402582478,1768713044617,-500.0,0.00016438,2]
[402582479,1768713044626,-500.0,0.00016438,2]
[402582480,1768713044636,-507.84151662,0.00016438,2]
[402582481,1768713044645,-500.0,0.00016438,2]
[402582482,1768713044654,-500.0,0.00016438,2]
[402582483,1768713044665,-501.02,0.00016438,2]
[402582484,1768713044674,-696.2,0.00016438,2]
[402582485,1768713044684,-500.0,0.00016438,2]
[402582486,1768713044696,-500.0,0.00016438,2]
[402582487,1768713044706,-500.0,0.00016438,2]
[402582488,1768713044716,-522.88,0.00016438,2]
[402582489,1768713044730,-573.34,0.00016438,2]
[402582490,1768713044740,-1592.19,0.00016438,2]
[402582491,1768713044750,-500.0,0.00016438,2]
[402582492,1768713044760,-500.0,0.00016438,2]
[402582493,1768713044770,-500.0,0.00016438,2]
[402582494,1768713044779,-691.37,0.00016438,2]
[402582495,1768713044789,-500.0,0.00016438,2]
[402582496,1768713044799,-500.0,0.00016438,2]
[402582497,1768713044808,-500.0,0.00016438,2]
[402582498,1768713044819,-500.0,0.00016438,2]
[402582499,1768713044829,-711.68,0.00016438,2]
[402582500,1768713044839,-500.0,0.00016438,2]
[402582501,1768713044849,-290.99779788,0.00016438,2]
[402582502,1768713044859,-500.0,0.00016438,2]
[402582503,1768713044869,-500.0,0.00016438,2]
[402582504,1768713044879,-500.0,0.00016438,2]
[402582505,1768713044889,-515.03,0.00016438,2]
[402582506,1768713044899,-500.0,0.00016438,2]
[402582507,1768713044909,-500.0,0.00016438,2]
[402582508,1768713044918,-500.0,0.00016438,2]
[402582509,1768713044928,-500.0,0.00016438,2]
[402582510,1768713044938,-500.0,0.00016438,2]
[402582511,1768713044947,-500.0,0.00016438,2]
[402582512,1768713044957,-500.0,0.00016438,2]
[402582513,1768713044968,-500.0,0.00016438,2]
[402582514,1768713044977,-500.0,0.00016438,2]
[402582515,1768713044988,-500.0,0.00016438,2]
[402582516,1768713044998,-500.0,0.00016438,2]
[402582517,1768713045008,-500.0,0.00016438,2]
[402582518,1768713045018,-500.0,0.00016438,2]
[402582519,1768713045028,-500.0,0.00016438,2]
[402582520,1768713045038,-500.0,0.00016438,2]
[402582521,1768713045049,-568.47,0.00016438,2]
[402582522,1768713045058,-500.0,0.00016438,2]
[402582523,1768713045069,-500.0,0.00016438,2]
[402582524,1768713045078,-500.0,0.00016438,2]
[402582525,1768713045087,-500.0,0.00016438,2]
[402582526,1768713045097,-500.0,0.00016438,2]
[402582527,1768713045107,-500.0,0.00016438,2]
[402582528,1768713045117,-500.0,0.00016438,2]
[402582529,1768713045127,-500.0,0.00016438,2]
[402582530,1768713045137,-500.0,0.00016438,2]
[402582531,1768713045148,-500.0,0.00016438,2]
[402582532,1768713045158,-500.0,0.00016438,2]
[402582533,1768713045167,-500.0,0.00016438,2]
[402582534,1768713045176,-174.32870031,0.00016438,2]
[402582535,1768713045186,-500.0,0.00016438,2]
[402582536,1768713045195,-500.0,0.00016438,2]
[402582537,1768713045205,-500.0,0.00016438,2]
[402582538,1768713045215,-500.0,0.00016438,2]
[402582539,1768713045225,-500.0,0.00016438,2]
[402582540,1768713045237,-500.0,0.00016438,2]
[402582541,1768713045248,-568.57,0.00016438,2]
[402582542,1768713045258,-500.0,0.00016438,2]
[402582543,1768713045268,-500.0,0.00016438,2]
[402582544,1768713045278,-509.44,0.00016438,2]
[402582545,1768713045288,-618.37,0.00016438,2]
[402582546,1768713045298,-500.0,0.00016438,2]
[402582547,1768713045308,-500.0,0.00016438,2]
[402582548,1768713045317,-500.0,0.00016438,2]
[402582549,1768713045327,-500.0,0.00016438,2]
[402582550,1768713045337,-663.69,0.00016438,2]
[402582551,1768713045346,-500.0,0.00016438,2]
[402582552,1768713045356,-500.0,0.00016438,2]
[402582553,1768713045365,-500.0,0.00016438,2]
[402582554,1768713045375,-500.0,0.00016438,2]
[402582555,1768713045384,-500.0,0.00016438,2]
[402582556,1768713045394,-532.17207364,0.00016438,2]
[402582557,1768713045403,-500.0,0.00016438,2]
[402582558,1768713045413,-500.0,0.00016438,2]
[402582559,1768713045422,-500.0,0.00016438,2]
[402582560,1768713045432,-500.0,0.00016438,2]
[402582561,1768713045441,-500.0,0.00016438,2]
[402582562,1768713045451,-500.0,0.00016438,2]
[402582563,1768713045460,-500.0,0.00016438,2]
[402582564,1768713045469,-500.0,0.00016438,2]
[402582565,1768713045479,-500.0,0.00016438,2]
[402582566,1768713045488,-500.0,0.00016438,2]
[402582567,1768713045498,-560.58,0.00016438,2]
[402582568,1768713045507,-500.0,0.00016438,2]
[402582569,1768713045516,-500.0,0.00016438,2]
[402582570,1768713045526,-500.0,0.00016438,2]
[402582571,1768713045536,-500.0,0.00016438,2]
[402582572,1768713045545,-500.0,0.00016438,2]
[402582573,1768713045556,-500.0,0.00016438,2]
[402582574,1768713045567,-500.0,0.00016438,2]
[402582575,1768713045576,-500.0,0.00016438,2]
[402582576,1768713045586,-500.0,0.00016438,2]
[402582577,1768713045595,-500.0,0.00016438,2]
[402582578,1768713045604,-500.0,0.00016438,2]
[402582579,1768713045614,-564.3,0.00016438,2]
[402582580,1768713045627,-500.0,0.00016438,2]
[402582581,1768713045637,-500.0,0.00016438,2]
[402582582,1768713045647,-500.0,0.00016438,2]
[402582583,1768713045656,-500.0,0.00016438,2]
[402582584,1768713045667,-334.15219368,0.00016438,2]
[402582585,1768713045677,-500.0,0.00016438,2]
[402582586,1768713045690,-500.0,0.00016438,2]
[402582587,1768713045702,-500.0,0.00016438,2]
[402582588,1768713045711,-500.0,0.00016438,2]
[402582589,1768713045721,-500.0,0.00016438,2]
[402582590,1768713045730,-500.0,0.00016438,2]
[402582591,1768713045740,-500.0,0.00016438,2]
[402582592,1768713045750,-500.0,0.00016438,2]
[402582593,1768713045760,-500.0,0.00016438,2]
[402582594,1768713045770,-500.0,0.00016438,2]
[402582595,1768713045779,-500.0,0.00016438,2]
[402582596,1768713045790,-500.0,0.00016438,2]
[402582597,1768713045800,-500.0,0.00016438,2]
[402582598,1768713045810,-500.0,0.00016438,2]
[402582599,1768713045820,-500.0,0.00016438,2]
[402582600,1768713045830,-500.0,0.00016438,2]
[402582601,1768713045840,-500.0,0.00016438,2]
[402582602,1768713045850,-500.0,0.00016438,2]
[402582603,1768713045860,-500.0,0.00016438,2]
[402582604,1768713045871,-500.0,0.00016438,2]
[402582605,1768713045881,-500.0,0.00016438,2]
[402582606,1768713045891,-500.0,0.00016438,2]
[402582607,1768713045901,-500.0,0.00016438,2]
[402582608,1768713045910,-500.0,0.00016438,2]
[402582609,1768713045921,-500.0,0.00016438,2]
[402582610,1768713045930,-500.0,0.00016438,2]
[402582611,1768713045940,-436.74724667,0.00016438,2]
[402582612,1768713045949,-500.0,0.00016438,2]
[402582613,1768713045959,-500.0,0.00016438,2]
[402582614,1768713045968,-500.0,0.00016438,2]
[402582615,1768713045978,-500.0,0.00016438,2]
[402582616,1768713045988,-500.0,0.00016438,2]
[402582617,1768713045997,-500.0,0.00016438,2]
[402582618,1768713046007,-500.0,0.00016438,2]
[402582619,1768713046016,-473.98108382,0.00016438,2]
[402582620,1768713046026,-500.0,0.00016438,2]
[402582621,1768713046036,-500.0,0.00016438,2]
[402582622,1768713046046,-500.0,0.00016438,2]
[402582623,1768713046055,-500.0,0.00016438,2]
[402582624,1768713046065,-500.0,0.00016438,2]
[402582625,1768713046074,-500.0,0.00016438,2]
[402582626,1768713046084,-500.0,0.00016438,2]
[402582627,1768713046093,-527.63,0.00016438,2]
[402582628,1768713046103,-500.0,0.00016438,2]
[402582629,1768713046112,-500.0,0.00016438,2]
[402582631,1768713046121,-500.0,0.00016438,2]
[402582632,1768713046131,-500.0,0.00016438,2]
[402582633,1768713046139,-500.0,0.00016438,2]
[402582634,1768713046149,-500.0,0.00016438,2]
[402582635,1768713046159,-500.0,0.00016438,2]
[402582636,1768713046167,-553.56,0.00016438,2]
[402582637,1768713046177,-500.0,0.00016438,2]